Cogmind - Beta 15 @@@ ROGUE MODE // 2025.08.22 @ 21:01:32 Player: beans Result: Destroyed by Y-45 Defender with Beam Rifle Performance ------------- Evolutions (2) 1000 Regions Visited (6) 1200 Robots Destroyed (109) 545 Value Destroyed (2641) 2641 Prototype IDs (3) 60 Alien Tech Used (0) 0 Bonus (1365) 1365 TOTAL SCORE: 6811 Bonus ------- High Alert Combat Kills 165 Entered Garrisons 200 Used RIF Installer 1000 Cogmind --------- Core Integrity 0/550 Matter 248/300 Energy 100/100 System Corruption 9% Temperature Cool (9) Movement Treading (160) Location -8/Materials Parts ------- > --- POWER (1) -------- (None) > --- PROPULSION (4) --- Improved Medium Treads > --- UTILITY (4) ------ Large Storage Unit Layered Medium Armor Plating > --- WEAPON (2) ------- (None) > --- INVENTORY (15) --- Improved Sensor Array Advanced Targeting Computer Tractor Beam Small Laser Heavy Machine Gun Assault Cannon Peak State ------------ > --- POWER ------------ Deuterium Engine > --- PROPULSION ------- Improved Medium Treads > --- UTILITY ---------- Large Storage Unit Advanced Visual Processing Unit Cloaking Device Layered Medium Armor Plating > --- WEAPON ----------- Heavy EM Shotgun Mini Grenade Launcher > --- INVENTORY -------- Improved Sensor Array Advanced Targeting Computer Tractor Beam Small Laser Heavy Machine Gun [Rating: 29] Favorites ----------- Power Deuterium Engine Engine Deuterium Engine Propulsion Light Treads Treads Light Treads Leg Aluminum Leg Hover Unit Aerolev Unit Utility Large Storage Unit Device Cooling System Storage Large Storage Unit Processor Advanced Visual Processing Unit Protection Layered Medium Armor Plating Weapon Ion Cannon Energy Gun Beam Rifle Energy Cannon Ion Cannon Launcher Mini Grenade Launcher Build | -11 -10 -9 -9 -8 -8 -8 ------- Run | Yrd Mat Mat Min Mat Gar Mat Slots Evolved 4 | . . 2 . 2 . . Power . | . . . . . . . Propulsion 2 | . . . . 2 . . Utility 2 | . . 2 . . . . Weapon . | . . . . . . . Parts Attached 44 | 5 7 4 . 18 10 . Power 4 | 1 . . . 3 . . Engine 4 | 1 . . . 3 . . Core . | . . . . . . . Reactor . | . . . . . . . Propulsion 14 | 2 . 2 . 4 6 . Treads 5 | 2 . . . 2 1 . Leg 5 | . . . . . 5 . Wheel . | . . . . . . . Hover 4 | . . 2 . 2 . . Flight . | . . . . . . . Utility 13 | . 3 1 . 7 2 . Device 8 | . 1 . . 6 1 . Storage 1 | . 1 . . . . . Processor 3 | . 1 1 . 1 . . Hackware . | . . . . . . . Protection 1 | . . . . . 1 . Artifact . | . . . . . . . Weapon 13 | 2 4 1 . 4 2 . Energy Gun 9 | 2 4 1 . 2 . . Energy Cannon 3 | . . . . 2 1 . Ballistic Gun . | . . . . . . . Ballistic Cannon . | . . . . . . . Launcher 1 | . . . . . 1 . Special Weapon . | . . . . . . . Impact Weapon . | . . . . . . . Slashing Weapon . | . . . . . . . Piercing Weapon . | . . . . . . . Special Melee Weapon . | . . . . . . . Unidentified Prototypes 3 | . . 2 . 1 . . Parts Lost 33 | . 1 . 4 12 12 4 Power 4 | . . . 1 2 . 1 Propulsion 11 | . . . . 5 6 . Utility 8 | . 1 . 1 2 2 2 Weapon 10 | . . . 2 3 4 1 Highest Loss Streak 5 | . 1 . 2 4 5 2 To Critical Strikes . | . . . . . . . Average Backups 5 | . 3 4 6 5 5 5 Power . | . . . . . . . Propulsion . | . . . 3 . . . Utility 2 | . . . 1 2 3 3 Weapon 2 | . 3 4 2 2 2 2 Tool/Special . | . . . . . . . Unused Backups 6 | . 1 . . . 1 4 Power . | . . . . . . . Propulsion . | . . . . . . . Utility 5 | . 1 . . . 1 3 Weapon 1 | . . . . . . 1 Tool/Special . | . . . . . . . Average Slot Usage (%) 76 | . 89 88 86 76 72 65 Engine 9 | . 14 11 10 7 9 8 Treads 8 | . 28 17 . 13 3 9 Leg 6 | . . . . . 12 . Hover 3 | . . 4 22 3 . . Device 9 | . 8 11 10 10 10 6 Storage 9 | . 8 11 11 9 9 9 Processor 9 | . 1 11 11 14 9 6 Energy Gun 8 | . 28 22 21 6 2 9 Energy Cannon 6 | . . . . 9 8 . Launcher 3 | . . . . . 7 9 Peak Build Rating 29 | 5 9 17 17 23 29 29 Average Rating 17 | 3 7 11 16 17 19 26 On Entrance 13 | . 5 9 17 15 22 29 Naked Turns . | . . . . . . . Heaviest Build 46 | 6 30 30 30 46 46 43 Greatest Support 40 | 40 40 40 16 40 40 30 Greatest Overweight (x) 12 | 1 . 3 1 10 12 1 Average Overweight (x) . | . . . 1 . 1 . Largest Inventory Capacity 15 | 5 15 15 15 15 15 15 Average Capacity 14 | 5 11 15 15 15 15 15 Most Carried 10 | 2 5 8 8 10 9 6 Average Carried 5 | . 3 4 6 5 5 5 Final Capacity 15 | 5 15 15 15 15 15 15 Final Carried 8 | . 5 8 7 8 5 6 Class Distribution -------------------- 83% | Mutant 16% | Scavenger-Mutant Dominant Class ---------------- Mutant | -10/Materials Mutant | -9/Materials Mutant | -9/Mines Scavenger-Mutant | -8/Materials Mutant | -8/Garrison Mutant | -8/Materials Resources | -11 -10 -9 -9 -8 -8 -8 ----------- Run | Yrd Mat Mat Min Mat Gar Mat Matter Collected 938 | 230 85 30 30 195 368 . Remotely . | . . . . . . . Salvage Created 4150 | . 639 178 331 2052 950 . Parts 209 | . 41 11 17 102 38 . Haulers Intercepted 9 | . 2 1 . 6 . . Recyclers Shooed 6 | . 2 . . 4 . . Parts Field Recycled . | . . . . . . . Retrieved Matter . | . . . . . . . Parts Self-Destructed . | . . . . . . . Prevented . | . . . . . . . Kills | -11 -10 -9 -9 -8 -8 -8 ------- Run | Yrd Mat Mat Min Mat Gar Mat Combat Hostiles Destroyed 62 | . 7 2 9 21 23 . Guns 32 | . 7 2 8 13 2 . Cannons 17 | . . . . 7 10 . AOE 9 | . . . . . 9 . Classes Destroyed 13 | . 8 . 1 3 1 . Worker 7 | . 2 1 1 3 . . Builder 11 | . 2 . . 9 . . Tunneler 1 | . . . 1 . . . Hauler 9 | . 2 1 . 6 . . Recycler 11 | . 2 . 1 8 . . Mechanic 1 | . . . . 1 . . Operator 2 | . 1 1 . . . . Watcher 5 | . 1 . . 2 2 . Swarmer 22 | . 3 . 7 9 3 . Grunt 27 | . 4 2 2 8 11 . Duelist 4 | . . . . . 4 . Sentry 6 | . . . . 3 3 . Hunter 3 | . . . . 1 2 . Best Kill Streak 8 | . 5 4 4 8 7 . Combat Bots Only 7 | . 4 2 4 4 7 . Max Kills in Single Turn 2 | . 1 1 2 2 2 . Gunslinging 1 | . . . 1 1 . . Exploded 2 | . . . . . 2 . Melee . | . . . . . . . Uniques/NPCs Destroyed . | . . . . . . . Combat | -11 -10 -9 -9 -8 -8 -8 -------- Run | Yrd Mat Mat Min Mat Gar Mat Hostile Shots Fired 333 | . 23 1 58 124 117 10 Missed 110 | . 2 1 23 40 41 3 Hits 223 | . 21 . 35 84 76 7 Melee 6 | . . . . . 5 1 Projectile 217 | . 21 . 35 84 71 6 Critical Strikes 7 | . 2 . . 1 4 . Damage Taken 3541 | . 268 . 327 1111 1305 530 Core 638 | . 13 . 67 195 349 14 Absorbed by Shields . | . . . . . . . Core Remaining (%) 92 | 100 94 . 83 . . . Volleys Fired 322 | 3 34 9 22 142 105 7 Largest 2 | 2 2 2 2 2 2 1 Hottest 129 | 90 112 90 112 129 129 30 Shots Fired 530 | 6 68 18 40 246 145 7 Gun 306 | 6 68 18 40 155 19 . Cannon 192 | . . . . 91 101 . Launcher 32 | . . . . . 25 7 Special . | . . . . . . . Kinetic . | . . . . . . . Thermal 363 | 6 18 . 30 246 63 . Explosive 32 | . . . . . 25 7 Electromagnetic 135 | . 50 18 10 . 57 . Robot Hit Streak 11 | 2 6 3 11 11 10 . Robot Miss Streak 5 | 1 3 5 4 3 3 . Penetration Max . | . . . . . . . Secondary Targets 7 | . 3 . 3 1 . . Max Gunslinging Chain 1 | . 1 . 1 1 . . Shots Hit Robots 284 | 4 38 7 23 157 55 . Core Hits 153 | . 20 5 12 64 49 3 Critical Kills 2 | . . . . . 2 . Critical Parts Destroyed . | . . . . . . . Critical Strikes 19 | . 4 . 3 10 2 . Burn 16 | . 3 . 3 10 . . Meltdown 2 | . . . . . 2 . Corrupt 1 | . 1 . . . . . Melee Attacks . | . . . . . . . Impact . | . . . . . . . Slashing . | . . . . . . . Piercing . | . . . . . . . Sneak Attacks . | . . . . . . . Combat Hostiles . | . . . . . . . Follow-up Attacks . | . . . . . . . Damage Inflicted 6746 | 46 660 135 360 2906 2549 90 Guns 3152 | 46 589 135 328 1805 249 . Cannons 2146 | . . . . 1101 1045 . Explosions 1446 | . 71 . 30 . 1255 90 Melee . | . . . . . . . Ramming 2 | . . . 2 . . . Kinetic . | . . . . . . . Thermal 4391 | 46 208 . 306 2906 925 . Explosive 1286 | . . . . . 1196 90 Electromagnetic 1067 | . 452 135 52 . 428 . Impact . | . . . . . . . Slashing . | . . . . . . . Piercing . | . . . . . . . Highest Corruption 9 | . 1 . . . . 9 Average Corruption 3 | . 1 . . . . 9 Corruption Purged . | . . . . . . . Corruption Blocked . | . . . . . . . Effects 2 | . 1 . . . . 1 Heat Flow Errors 1 | . 1 . . . . . Parts Rejected 1 | . . . . . . 1 Overload Shots . | . . . . . . . Overflow Damage 123 | . . . 10 82 31 . Projectiles 80 | . . . . 49 31 . Explosions 43 | . . . 10 33 . . Melee . | . . . . . . . Knockbacks . | . . . . . . . Impact . | . . . . . . . Kinetic . | . . . . . . . Secondary . | . . . . . . . Self-Inflicted Damage 286 | . 28 . 32 57 123 46 Shots 11 | . 1 . 1 1 6 2 Rammed 1 | . . . 1 . . . Targets Rammed 1 | . . . 1 . . . Kicked . | . . . . . . . Crushed . | . . . . . . . Highest Temperature 308 | 90 153 . 66 308 55 . Average Temperature 60 | 48 49 . 18 91 15 . Received Heat Transfer 1014 | . 99 . 24 342 504 45 Effects 3 | . . . . 3 . . Interference 3 | . . . . 3 . . Siege Activations . | . . . . . . . Martial Activations . | . . . . . . . Shielding Activations . | . . . . . . . Robots Disrupted . | . . . . . . . Combat Hostiles . | . . . . . . . Robots Corrupted 1 | . 1 . . . . . Combat Hostiles . | . . . . . . . Parts Fried 8 | . 6 1 . . 1 . Impact Corruptions . | . . . . . . . Robots Melted 5 | . . . 1 2 2 . Combat Hostiles 4 | . . . 1 1 2 . Parts Melted 20 | . 1 . . 15 4 . Heat Transferred 9795 | 124 680 . 925 6734 1332 . Parts Sabotaged . | . . . . . . . Parts Stolen . | . . . . . . . Parts Stripped . | . . . . . . . Power Chain Reactions 4 | . 2 . 1 . 1 . Alert | -11 -10 -9 -9 -8 -8 -8 ------- Run | Yrd Mat Mat Min Mat Gar Mat Maximum Alert Level 5 | . . . . 1 5 3 Low Security (%) 47 | 100 100 100 100 70 13 . Level 1 10 | . . . . 29 5 . Level 2 9 | . . . . . 20 . Level 3 21 | . . . . . 38 100 Level 4 7 | . . . . . 16 . Level 5 2 | . . . . . 5 . High Security . | . . . . . . . Max Security . | . . . . . . . Peak Influence 1725 | . 95 57 128 235 1725 840 Initial 840 | . . 32 7 51 132 840 Average 449 | . 33 35 10 152 794 803 Influence Increases 3151 | . 263 57 266 826 1713 26 Destroy 0b10 Robot/C 1240 | . 140 40 180 420 460 . Destroy 0b10 Robot/NC 235 | . 50 15 15 145 10 . Destroy Leader 204 | . 36 2 20 106 40 . Successful Hack 4 | . . . . 4 . . Disable Machine 135 | . 30 . . 45 60 . Anti-Garrison Action 950 | . . . . . 950 . Destroy Structure 263 | . 7 . 6 46 178 26 Lose Combat Pursuer 120 | . . . 45 60 15 . Influence Decreases 2405 | . 185 116 152 755 192 1005 Entered New Map 1097 | . . 46 12 82 72 885 Time Decay 978 | . 175 70 100 553 . 80 Lost Part 330 | . 10 . 40 120 120 40 Squads Dispatched 2 | . . 1 . 1 . . Investigation 1 | . . . . 1 . . Extermination . | . . . . . . . Reinforcement 1 | . . 1 . . . . Assault . | . . . . . . . Garrison . | . . . . . . . Intercept . | . . . . . . . Searches Triggered . | . . . . . . . Construction Impeded . | . . . . . . . Haulers Reinforced . | . . . . . . . Active Scanning Responses . | . . . . . . . Cargo Convoy Interrupts . | . . . . . . . Stealth | -11 -10 -9 -9 -8 -8 -8 --------- Run | Yrd Mat Mat Min Mat Gar Mat Distress Signals 7 | . . 1 3 3 . . Communications Jammed . | . . . . . . . Distress Signals . | . . . . . . . Times Spotted 104 | . 12 3 16 42 28 3 Peak Tracking Total 9 | . 3 2 9 8 5 4 Tactical Retreats 6 | . . . 2 3 1 . Traps | -11 -10 -9 -9 -8 -8 -8 ------- Run | Yrd Mat Mat Min Mat Gar Mat Traps Triggered 12 | . 1 . . 2 9 . Indirectly . | . . . . . . . Trap Hack Attempts . | . . . . . . . Triggered . | . . . . . . . Disarmed . | . . . . . . . Reprogrammed . | . . . . . . . Reused . | . . . . . . . Traps Extracted . | . . . . . . . Installed . | . . . . . . . Triggered . | . . . . . . . Machines | -11 -10 -9 -9 -8 -8 -8 ---------- Run | Yrd Mat Mat Min Mat Gar Mat Machines Disabled 12 | . 2 . . 3 7 . Max in Single Turn 2 | . 1 . . 2 2 . Phase Generator 1 | . . . . . 1 . Machines Repaired . | . . . . . . . Machines Dismantled . | . . . . . . . Machines Sabotaged . | . . . . . . . Overloaded Fab Kills . | . . . . . . . Hacking | -11 -10 -9 -9 -8 -8 -8 --------- Run | Yrd Mat Mat Min Mat Gar Mat Machines Accessed 1 | . . . . 1 . . Terminals . | . . . . . . . Fabricators . | . . . . . . . Repair Stations . | . . . . . . . Recycling Units . | . . . . . . . Scanalyzers . | . . . . . . . Garrison Access 1 | . . . . 1 . . Total Hacks 4 | . . . . 4 . . Successful 1 | . . . . 1 . . Failed 3 | . . . . 3 . . Catastrophic . | . . . . . . . Database Lockouts . | . . . . . . . Manual . | . . . . . . . Terminals . | . . . . . . . Fabricators . | . . . . . . . Repair Stations . | . . . . . . . Recycling Units . | . . . . . . . Scanalyzers . | . . . . . . . Garrison Access 4 | . . . . 4 . . Terminal Hacks . | . . . . . . . Fabricator Hacks . | . . . . . . . Repair Station Hacks . | . . . . . . . Recycling Unit Hacks . | . . . . . . . Scanalyzer . | . . . . . . . Garrison Access Hacks 1 | . . . . 1 . . Unlock Access 1 | . . . . 1 . . Unauthorized Hacks . | . . . . . . . Terminals . | . . . . . . . Fabricators . | . . . . . . . Repair Stations . | . . . . . . . Recycling Units . | . . . . . . . Scanalyzers . | . . . . . . . Garrison Access . | . . . . . . . Data Cores Recovered 1 | . 1 . . . . . Used . | . . . . . . . Hacking Detections 1 | . . . . 1 . . Full Trace Events . | . . . . . . . Feedback Events . | . . . . . . . Feedback Blocked . | . . . . . . . Robot Schematics Acquired . | . . . . . . . Robots Built . | . . . . . . . Authchips . | . . . . . . . Time . | . . . . . . . Total Robot Build Rating . | . . . . . . . Part Schematics Acquired . | . . . . . . . Parts Built . | . . . . . . . Authchips . | . . . . . . . Time . | . . . . . . . Total Part Build Rating . | . . . . . . . Parts Repaired . | . . . . . . . Time . | . . . . . . . Parts Recycled . | . . . . . . . Recycled Matter . | . . . . . . . Retrieved Matter . | . . . . . . . Retrieved Components . | . . . . . . . Parts Scanalyzed . | . . . . . . . Part Schematics Acquired . | . . . . . . . Parts Damaged . | . . . . . . . Bothacking | -11 -10 -9 -9 -8 -8 -8 ------------ Run | Yrd Mat Mat Min Mat Gar Mat Used RIF Installer 2 | . . . . . 2 . Patrol Navigation 1 | . . . . . 1 . Robots Hacked . | . . . . . . . Non-combat . | . . . . . . . Combat . | . . . . . . . Robot Hacks Applied . | . . . . . . . Relay Couplers Released . | . . . . . . . Fabnet Peak Effective % . | . . . . . . . Robots Rewired . | . . . . . . . Allies Hacked . | . . . . . . . Hacks Repelled . | . . . . . . . Allies | -11 -10 -9 -9 -8 -8 -8 -------- Run | Yrd Mat Mat Min Mat Gar Mat Total Allies . | . . . . . . . Largest Group . | . . . . . . . Highest-Rated Group . | . . . . . . . Highest-Rated Ally . | . . . . . . . Total Orders . | . . . . . . . Ally Attacks . | . . . . . . . Total Damage . | . . . . . . . Kills . | . . . . . . . Allies Corrupted . | . . . . . . . Allies Melted . | . . . . . . . Intel | -11 -10 -9 -9 -8 -8 -8 ------- Run | Yrd Mat Mat Min Mat Gar Mat Active Infowar (turns) 5552 | . . 148 719 1546 3027 112 Optics 4252 | . . . . 1113 3027 112 T.N.C. 2323 | . . 148 719 1456 . . Cloaking 306 | . . . . . 194 112 Robot Analysis Total . | . . . . . . . Derelict Logs Recovered 1 | . . . 1 . . . Drone Launches . | . . . . . . . Drone Recoveries . | . . . . . . . Exploration | -11 -10 -9 -9 -8 -8 -8 ------------- Run | Yrd Mat Mat Min Mat Gar Mat Turns Passed 6273 | 67 526 148 719 1614 3027 172 Spaces Moved 2385 | 43 252 70 96 607 1251 66 Core 28 | 22 . . . 5 1 . Treads 1137 | 21 252 48 . 521 229 66 Legs 1021 | . . . . . 1021 . Wheels . | . . . . . . . Hover 199 | . . 22 96 81 . . Flight . | . . . . . . . Fastest Speed 38 | 50 160 106 106 38 190 160 Average Speed 191 | 114 160 145 106 184 210 238 Slowest Speed 650 | 160 160 250 106 550 650 240 Overloaded Moves . | . . . . . . . Propulsion Burnouts . | . . . . . . . Robots Hopped . | . . . . . . . Potential Cave-ins 5 | . . . . . . 5 Cave-ins Triggered 1 | . . . . . . 1 Exploration Rate (%) 32 | 4 55 9 23 43 88 8 Regions Visited 6 Branch Regions 1 Pre-discovered Areas . | . . . . . . . Known Exits Taken 1 | . . . . 1 . . Unknown Exits Taken 4 | 1 1 1 1 . . . Scrap Searched . | . . . . . . . Spaces Dug 72 | . . . . 1 31 40 Terrain Destroyed 366 | . 6 . 6 53 212 89 Melee . | . . . . . . . Projectile 16 | . . . . 15 1 . AOE 350 | . 6 . 6 38 211 89 Terrain Rammed . | . . . . . . . Walls Destroyed . | . . . . . . . Machines Disabled . | . . . . . . . Actions | -11 -10 -9 -9 -8 -8 -8 --------- Run | Yrd Mat Mat Min Mat Gar Mat Total 3560 | 55 305 98 673 855 1500 74 Wait 710 | . 3 7 552 61 87 . Move 2379 | 42 251 69 95 607 1249 66 Hop . | . . . . . . . Pick Up 53 | 5 9 6 1 20 11 1 Fast Attach . | . . . . . . . Attach 45 | 5 3 3 2 19 13 . Detach . | . . . . . . . Swap 12 | . 4 2 . 2 4 . Drop 9 | . 1 2 . 4 2 . Fire 322 | 3 34 9 22 142 105 7 Melee . | . . . . . . . Ram 1 | . . . 1 . . . Kick . | . . . . . . . Crush . | . . . . . . . Escape Stasis 29 | . . . . . 29 . Rewire . | . . . . . . . Trap . | . . . . . . . Miscellaneous . | . . . . . . . Route ------- -11/Scrapyard -10/Materials (discovered 2 exits: [*Mat x2]) -9/Materials -9/Mines -8/Materials (discovered 2 exits: [*Fac] / Gar) -8/Garrison (discovered 3 exits: [*Mat x3]) -8/Materials History --------- Turn | Location | Event 2 | -11/Scrapyard | Discovered new exit (range 16) 68 | -11/Scrapyard | Entered Materials 230 | -10/Materials | Discovered new exit (range 15) 310 | -10/Materials | Build established: Mutant 536 | -10/Materials | Discovered new exit (range 13) 594 | -10/Materials | Entered another Materials area 594 | -9/Materials | Evolved 2 slots: Utility x2 736 | -9/Materials | Discovered new exit (range 6) 742 | -9/Materials | Entered Mines 812 | -9/Mines | Excavation squad dispatched 812 | -9/Mines | A large section of the Mines collapsed 1062 | -9/Mines | Excavation squad dispatched 1312 | -9/Mines | Excavation squad dispatched 1433 | -9/Mines | Learned Materials emergency access door positions 1456 | -9/Mines | Discovered new exit (range 5) 1461 | -9/Mines | Entered Materials 1461 | -8/Materials | Evolved 2 slots: Propulsion x2 1775 | -8/Materials | Lost 4 parts (1p1n2w) 1832 | -8/Materials | Lost 3 parts (1n2u) 2110 | -8/Materials | Discovered new exit (range 9) 2126 | -8/Materials | Build established: Scavenger-Mutant 3075 | -8/Materials | Identified exit to Garrison 3075 | -8/Materials | Entered Garrison 3101 | -8/Garrison | Triggered checkpoint 3158 | -8/Garrison | Build established: Mutant 3337 | -8/Garrison | Triggered checkpoint 3482 | -8/Garrison | Triggered checkpoint 3555 | -8/Garrison | Triggered checkpoint 3585 | -8/Garrison | Core integrity fell below 50% 3626 | -8/Garrison | Destroyed 7 combat bots 3634 | -8/Garrison | Lost 5 parts (2n1u2w) 3652 | -8/Garrison | Triggered checkpoint 3775 | -8/Garrison | Triggered checkpoint 3930 | -8/Garrison | Discovered new exit (range 12) 4096 | -8/Garrison | Discovered new exit (range 19) 4115 | -8/Garrison | Triggered checkpoint 4127 | -8/Garrison | Core integrity fell below 20% 4324 | -8/Garrison | Discovered new exit (range 19) 4368 | -8/Garrison | Triggered checkpoint 4521 | -8/Garrison | Installed Relay Interface Framework 5311 | -8/Garrison | Expanded RIF knowledge: Patrol Navigation 5432 | -8/Garrison | Phase Generator disabled 6102 | -8/Garrison | Entered Materials 6214 | -8/Materials | Crushed by falling debris 6274 | -8/Materials | Destroyed by Y-45 Defender with Beam Rifle Last Messages --------------- W-25 Informer destroyed. Acquired 33 matter. ALERT: Garrison interior compromised. Attempting to access garrison exit controls... RIF authorized. LOCATION=UNKNOWN GOAL=ESCAPE The unstable cave ceiling collapses. Crushed by falling debris. Cloaking Device destroyed. System corrupted by crushing effect (+4). Adv. Visual Processing Unit destroyed. System corrupted by crushing effect (+5). The unstable cave ceiling collapses. Acquired Assault Cannon. The unstable cave ceiling collapses. Deuterium Engine destroyed. System corrupted: Mni. Grenade Launcher rejected. Hvy. EM Shotgun destroyed. Map ----- +----------------------------------------------------+ | ????????????????????????????????????? | | ????????????????????????????????????? | | ????????????????????????????????????? | | ????????????????????????????????????? | | ????????????????????????????????????? | | ????????????????????????????????????? | | ????????????????????????????????????? | | ????????????????????????????????????? | | ????????????????????????????????????? | | ????????????????????????????????????? | | ????????????????????????????????????? | | ????????????????????????????????????? | | ????????????????????????????????????? | | ????????????????????????????????????? | | ????????????????????????????????????? | | ????????????????????????????????????? | | ???????????????????###??????????????? | | ??????????????????? ??????????????? | | ??????????????????? ??????????????? | | ??????????????????? ??????????????? | | ??????????????????? ##########????? | | ???????????????????? # [ #????? | | ??????????????????#? # """ #????? | | ??????????????????# # "T" #????? | | ??????????????????# # #????? | | ??????????????????? + @ ]#????? | | ??????????????????# # """ #????? | | ????????????????????# l""" #????? | | ???????????????????# g""" #????? | | ???????????????????# #????? | | ???????????????????##Y ###+##????? | | ?????????????#??????# # ###?????????? | | ?????????????#/ ????# ##????????????? | | ?????????????# ??# #?????????????? | | ?????????????# # ###### #????? | | ?????????????#!!] + +????? | | ?????????????#!]] #+###### #????? | | ?????????????#!]] ??# #?????????? | | ?????????????# #????#[= ! #?????????? | | ????????????????????#== #?????????? | | ????????????????????# #?????????? | | ???????????????###### #?????????? | | ???????????????# # #?????????? | | ???????????????# #?????????? | | ??????????????## #####?????????? | | ??????????????# #????????????? | | ??????????????# # # #????????????? | | ??????????????# #????????????? | | ??????????????## #????????????? | | ???????????????# #????????????? | +----------------------------------------------------+ Best States ------------- Heat Dissipation 53 Energy Generation 14 Energy Capacity 275 Matter Stores 300 Matter Capacity 300 Sight Range 20 Terrain Scan Density 10 Cloak Strength 2 Armor Coverage 225 Evasion (%) 45 Targeting Accuracy 5 Recoil Reduction 2 Particle Charging 15 Item Schematics ----------------- None Robot Schematics ------------------ None Fabricated ------------ Nothing Repaired ---------- Nothing Alien Tech Used ----------------- None Achievements -------------- None Challenges ------------ None Game ------ Seed ThrusterDirtyCutter Manual? 0 Play Time 00:31:19 Cumulative 100.3 hours Start 2025.08.22 @ 20:30:52 End 2025.08.22 @ 21:01:32 Sessions 1 Manual Loads 0 Difficulty Rogue Special Mode None Game No. 383 Rogue 383 Adventurer 0 Explorer 0 Win Type - Total 0 Types 0/0/0/0/0/0/0/0/0/0 Lore% 43 Gallery% 41 Achievement% 31 Wizard Run 0 Options --------- Layout 2 ASCII 0 Keyboard 0 Movement Mouse Keybinds 0 Fullscreen 2 Font 24/Smallcaps Map View 50x44 Zoom Use 0% Tactical HUD 0 Map Filters NONE Filters NONE Steam 1 RUN: 55d0b28e-1cda-4bb4-899c-08a8d4df0a8c